Cogmind - Beta 12 *** ADVENTURER MODE // 2024.02.05 @ 00:50:03 Player: Vanlighten Result: Self-destructed Performance ------------- Evolutions (0) 0 Regions Visited (4) 800 Robots Destroyed (25) 125 Value Destroyed (551) 551 Prototype IDs (2) 40 Alien Tech Used (0) 0 Bonus (0) 0 TOTAL SCORE: 1516 Bonus ------- None Cogmind --------- Core Integrity 185/250 Matter 300/300 Energy 160/160 System Corruption 0% Temperature Cool (0) Movement Walking (120) Location -9/Mines Parts ------- > --- POWER (1) -------- Light Nuclear Core > --- PROPULSION (2) --- Aluminum Leg Aluminum Leg > --- UTILITY (2) ------ Small Storage Unit Light Armor Plating > --- WEAPON (2) ------- Assault Rifle Assault Rifle > --- INVENTORY (8) ---- Light Treads Heat Sink Medium Storage Unit High-capacity Battery (250) High-capacity Matter Pod (200) Signal Interpreter Improved Targeting Computer Small Laser Peak State ------------ > --- POWER ------------ Light Nuclear Core > --- PROPULSION ------- Aluminum Leg Aluminum Leg > --- UTILITY ---------- Small Storage Unit Light Armor Plating > --- WEAPON ----------- Assault Rifle Assault Rifle > --- INVENTORY -------- Light Treads Light Treads Heat Sink Medium Storage Unit High-capacity Battery Signal Interpreter Improved Targeting Computer Small Laser [Rating: 9] Favorites ----------- Power Ion Engine Engine Ion Engine Power Core Light Nuclear Core Propulsion Aluminum Leg Leg Aluminum Leg Utility Small Storage Unit Storage Small Storage Unit Protection Light Armor Plating Weapon Assault Rifle Ballistic Gun Assault Rifle Build | -11 -10 -10 -10 -9 ------- Run | Jun Mat Min Exi Min Slots Evolved . | . . . . . Power . | . . . . . Propulsion . | . . . . . Utility . | . . . . . Weapon . | . . . . . Parts Attached 15 | 6 6 3 . . Power 3 | 1 1 1 . . Engine 2 | 1 1 . . . Core 1 | . . 1 . . Reactor . | . . . . . Propulsion 5 | 2 1 2 . . Treads . | . . . . . Leg 5 | 2 1 2 . . Wheel . | . . . . . Hover . | . . . . . Flight . | . . . . . Utility 5 | 1 4 . . . Device . | . . . . . Storage 3 | 1 2 . . . Processor . | . . . . . Hackware . | . . . . . Protection 2 | . 2 . . . Artifact . | . . . . . Weapon 2 | 2 . . . . Energy Gun . | . . . . . Energy Cannon . | . . . . . Ballistic Gun 2 | 2 . . . . Ballistic Cannon . | . . . . . Launcher . | . . . . . Special Weapon . | . . . . . Impact Weapon . | . . . . . Slashing Weapon . | . . . . . Piercing Weapon . | . . . . . Special Melee Weapon . | . . . . . Unidentified Prototypes . | . . . . . Parts Lost . | . . . . . Power . | . . . . . Propulsion . | . . . . . Utility . | . . . . . Weapon . | . . . . . Highest Loss Streak . | . . . . . To Critical Strikes . | . . . . . Average Slot Usage (%) 99 | . 99 100 100 100 Engine 7 | . 14 6 . . Core 6 | . . 7 14 14 Leg 28 | . 28 28 28 28 Storage 14 | . 14 14 14 14 Protection 13 | . 13 14 14 14 Ballistic Gun 28 | . 28 28 28 28 Naked Turns . | . . . . . Heaviest Build 24 | 14 24 17 17 17 Greatest Support 20 | 20 20 20 20 20 Greatest Overweight (x) 1 | 1 1 . . . Average Overweight (x) . | . . . . . Largest Inventory Capacity 10 | 8 10 8 8 8 Average Capacity 8 | 7 8 8 8 8 Most Carried 8 | 4 8 8 8 8 Average Carried 7 | 1 7 8 8 8 Final Capacity 8 | 8 8 8 8 8 Final Carried 8 | 4 8 8 8 8 Class Distribution -------------------- 100% | Mutant Dominant Class ---------------- Mutant | -10/Materials Mutant | -10/Mines Mutant | -10/Exiles Mutant | -9/Mines Resources | -11 -10 -10 -10 -9 ----------- Run | Jun Mat Min Exi Min Matter Collected 746 | 181 356 209 . . Remotely . | . . . . . Salvage Created 754 | . 529 225 . . Parts 52 | . 37 15 . . Haulers Intercepted 2 | . 2 . . . Recyclers Shooed . | . . . . . Parts Field Recycled . | . . . . . Retrieved Matter . | . . . . . Parts Self-Destructed . | . . . . . Prevented . | . . . . . Kills | -11 -10 -10 -10 -9 ------- Run | Jun Mat Min Exi Min Combat Hostiles Destroyed 17 | . 10 7 . . Guns 15 | . 8 7 . . AOE 2 | . 2 . . . Classes Destroyed 5 | . 5 . . . Worker 3 | . 2 1 . . Hauler 2 | . 2 . . . Watcher 3 | . 3 . . . Swarmer 6 | . 3 3 . . Grunt 11 | . 7 4 . . Best Kill Streak 6 | . 6 3 . . Combat Bots Only 5 | . 5 3 . . Max Kills in Single Turn 3 | . 3 1 . . Gunslinging . | . . . . . Exploded 2 | . 2 . . . Melee . | . . . . . Uniques/NPCs Destroyed . | . . . . . Combat | -11 -10 -10 -10 -9 -------- Run | Jun Mat Min Exi Min Damage Taken 408 | . 184 213 . 11 Core 65 | . 39 26 . . Absorbed by Shields . | . . . . . Core Remaining (%) 100 | 100 . . . . Volleys Fired 66 | 1 42 23 . . Largest 2 | 2 2 2 . . Hottest 40 | 40 40 40 . . Shots Fired 132 | 2 84 46 . . Gun 132 | 2 84 46 . . Cannon . | . . . . . Launcher . | . . . . . Special . | . . . . . Kinetic 132 | 2 84 46 . . Thermal . | . . . . . Explosive . | . . . . . Electromagnetic . | . . . . . Robot Hit Streak 15 | 2 15 9 . . Robot Miss Streak 4 | . 4 2 . . Penetration Max . | . . . . . Secondary Targets 2 | . 1 1 . . Max Gunslinging Chain 1 | . 1 1 . . Shots Hit Robots 96 | 2 59 35 . . Core Hits 38 | . 26 12 . . Critical Kills 1 | . . 1 . . Critical Parts Destroyed 1 | . . 1 . . Critical Strikes 2 | . . 2 . . Destroy 2 | . . 2 . . Melee Attacks . | . . . . . Impact . | . . . . . Slashing . | . . . . . Piercing . | . . . . . Sneak Attacks . | . . . . . Combat Hostiles . | . . . . . Follow-up Attacks . | . . . . . Damage Inflicted 1454 | 26 973 455 . . Guns 1244 | 26 763 455 . . Cannons . | . . . . . Explosions 210 | . 210 . . . Melee . | . . . . . Ramming . | . . . . . Kinetic 1244 | 26 763 455 . . Thermal . | . . . . . Explosive 210 | . 210 . . . Electromagnetic . | . . . . . Impact . | . . . . . Slashing . | . . . . . Piercing . | . . . . . Highest Corruption . | . . . . . Average Corruption . | . . . . . Corruption Purged . | . . . . . Corruption Blocked . | . . . . . Overload Shots . | . . . . . Overflow Damage 17 | . 17 . . . Projectiles . | . . . . . Explosions 17 | . 17 . . . Melee . | . . . . . Knockbacks . | . . . . . Impact . | . . . . . Kinetic . | . . . . . Secondary . | . . . . . Self-Inflicted Damage . | . . . . . Shots . | . . . . . Rammed . | . . . . . Targets Rammed . | . . . . . Kicked . | . . . . . Crushed . | . . . . . Highest Temperature 20 | . 16 20 . 14 Average Temperature 7 | . 5 9 . 7 Received Heat Transfer 288 | . 129 132 . 27 Siege Activations . | . . . . . Robots Corrupted . | . . . . . Combat Hostiles . | . . . . . Parts Fried . | . . . . . Impact Corruptions . | . . . . . Robots Melted . | . . . . . Combat Hostiles . | . . . . . Parts Melted . | . . . . . Heat Transferred . | . . . . . Parts Sabotaged . | . . . . . Parts Stolen . | . . . . . Parts Stripped . | . . . . . Power Chain Reactions . | . . . . . Missiles Intercepted . | . . . . . Alert | -11 -10 -10 -10 -9 ------- Run | Jun Mat Min Exi Min Peak Influence 237 | . 230 237 . 15 Initial 52 | . . 52 . . Average 88 | . 84 104 . 6 Maximum Alert Level 1 | . 1 1 . . Low Security (%) 89 | 100 85 90 . 100 Level 1 10 | . 14 9 . . Level 2 . | . . . . . Level 3 . | . . . . . Level 4 . | . . . . . Level 5 . | . . . . . High Security . | . . . . . Max Security . | . . . . . Squads Dispatched 1 | . 1 . . . Investigation 1 | . 1 . . . Extermination . | . . . . . Reinforcement . | . . . . . Assault . | . . . . . Garrison . | . . . . . Intercept . | . . . . . Searches Triggered . | . . . . . Construction Impeded . | . . . . . Haulers Reinforced . | . . . . . Active Scanning Responses . | . . . . . Cargo Convoy Interrupts . | . . . . . Stealth | -11 -10 -10 -10 -9 --------- Run | Jun Mat Min Exi Min Distress Signals 2 | . 2 . . . Communications Jammed . | . . . . . Distress Signals . | . . . . . Times Spotted 27 | . 17 7 . 3 Peak Tracking Total 3 | . 3 3 . 3 Tactical Retreats . | . . . . . Traps | -11 -10 -10 -10 -9 ------- Run | Jun Mat Min Exi Min Traps Triggered 1 | . 1 . . . Indirectly . | . . . . . Trap Hack Attempts . | . . . . . Triggered . | . . . . . Disarmed . | . . . . . Reprogrammed . | . . . . . Reused . | . . . . . Traps Extracted . | . . . . . Installed . | . . . . . Triggered . | . . . . . Machines | -11 -10 -10 -10 -9 ---------- Run | Jun Mat Min Exi Min Machines Disabled 1 | . 1 . . . Max in Single Turn 1 | . 1 . . . Machines Repaired . | . . . . . Machines Sabotaged . | . . . . . Overloaded Fab Kills . | . . . . . Hacking | -11 -10 -10 -10 -9 --------- Run | Jun Mat Min Exi Min Machines Accessed 9 | . 7 . 2 . Terminals 7 | . 7 . . . Fabricators . | . . . . . Repair Stations . | . . . . . Recycling Units . | . . . . . Scanalyzers . | . . . . . Garrison Access . | . . . . . Total Hacks 30 | . 28 . 2 . Successful 10 | . 8 . 2 . Failed 20 | . 20 . . . Catastrophic 2 | . 2 . . . Database Lockouts . | . . . . . Manual 10 | . 10 . . . Terminals 28 | . 28 . . . Fabricators . | . . . . . Repair Stations . | . . . . . Recycling Units . | . . . . . Scanalyzers . | . . . . . Garrison Access . | . . . . . Terminal Hacks 10 | . 8 . 2 . Record 3 | . 1 . 2 . Prototype ID Bank 1 | . 1 . . . Level Access Points 1 | . 1 . . . Alert Level 4 | . 4 . . . Investigation Status 1 | . 1 . . . Fabricator Hacks . | . . . . . Repair Station Hacks . | . . . . . Recycling Unit Hacks . | . . . . . Scanalyzer . | . . . . . Garrison Access Hacks . | . . . . . Unauthorized Hacks . | . . . . . Terminals . | . . . . . Fabricators . | . . . . . Repair Stations . | . . . . . Recycling Units . | . . . . . Scanalyzers . | . . . . . Garrison Access . | . . . . . Data Cores Recovered . | . . . . . Used . | . . . . . Hacking Detections 7 | . 7 . . . Full Trace Events 1 | . 1 . . . Feedback Events . | . . . . . Feedback Blocked . | . . . . . Robot Schematics Acquired . | . . . . . Robots Built . | . . . . . Authchips . | . . . . . Time . | . . . . . Total Robot Build Rating . | . . . . . Part Schematics Acquired . | . . . . . Parts Built . | . . . . . Authchips . | . . . . . Time . | . . . . . Total Part Build Rating . | . . . . . Parts Repaired . | . . . . . Time . | . . . . . Parts Recycled . | . . . . . Recycled Matter . | . . . . . Retrieved Matter . | . . . . . Retrieved Components . | . . . . . Parts Scanalyzed . | . . . . . Part Schematics Acquired . | . . . . . Parts Damaged . | . . . . . Bothacking | -11 -10 -10 -10 -9 ------------ Run | Jun Mat Min Exi Min Used RIF Installer . | . . . . . Robots Hacked . | . . . . . Non-combat . | . . . . . Combat . | . . . . . Robot Hacks Applied . | . . . . . Relay Couplers Released . | . . . . . Fabnet Peak Effective % . | . . . . . Robots Rewired . | . . . . . Allies Hacked . | . . . . . Hacks Repelled . | . . . . . Allies | -11 -10 -10 -10 -9 -------- Run | Jun Mat Min Exi Min Total Allies . | . . . . . Largest Group . | . . . . . Highest-Rated Group . | . . . . . Highest-Rated Ally . | . . . . . Total Orders . | . . . . . Ally Attacks . | . . . . . Total Damage . | . . . . . Kills . | . . . . . Allies Corrupted . | . . . . . Allies Melted . | . . . . . Intel | -11 -10 -10 -10 -9 ------- Run | Jun Mat Min Exi Min Robot Analysis Total . | . . . . . Derelict Logs Recovered 1 | . . 1 . . Drone Launches . | . . . . . Drone Recoveries . | . . . . . Exploration | -11 -10 -10 -10 -9 ------------- Run | Jun Mat Min Exi Min Turns Passed 2120 | 87 717 747 553 16 Spaces Moved 1574 | 66 473 562 460 13 Core 18 | 18 . . . . Treads . | . . . . . Legs 1556 | 48 473 562 460 13 Wheels . | . . . . . Hover . | . . . . . Flight . | . . . . . Fastest Speed 50 | 50 120 120 120 120 Average Speed 119 | 108 120 120 120 120 Slowest Speed 190 | 120 190 120 120 120 Overloaded Moves . | . . . . . Propulsion Burnouts . | . . . . . Robots Hopped . | . . . . . Cave-ins Triggered . | . . . . . Exploration Rate (%) 55 | 5 83 91 89 8 Regions Visited 4 Branch Regions 3 Pre-discovered Areas 1 | . . 1 . . Known Exits Taken . | . . . . . Unknown Exits Taken 4 | 1 1 1 1 . Scrap Searched 1 | . . 1 . . Spaces Dug . | . . . . . Terrain Destroyed 21 | . 21 . . . Melee . | . . . . . Projectile . | . . . . . AOE 21 | . 21 . . . Terrain Rammed . | . . . . . Walls Destroyed . | . . . . . Machines Disabled . | . . . . . Actions | -11 -10 -10 -10 -9 --------- Run | Jun Mat Min Exi Min Total 1677 | 76 537 590 461 13 Wait 7 | . 7 . . . Move 1570 | 65 472 561 459 13 Hop . | . . . . . Pick Up 10 | 4 5 . 1 . Fast Attach 8 | 6 2 . . . Attach . | . . . . . Detach 1 | . 1 . . . Swap 7 | . 4 3 . . Drop 8 | . 4 3 1 . Fire 66 | 1 42 23 . . Melee . | . . . . . Ram . | . . . . . Kick . | . . . . . Crush . | . . . . . Escape Stasis . | . . . . . Rewire . | . . . . . Trap . | . . . . . Miscellaneous . | . . . . . Route ------- -11/Junkyard -10/Materials (discovered 4 exits: *Mat x3 / [*Min]) -10/Mines (discovered 3 exits: *Mat x2 / *Exi) -10/Exiles -9/Mines History --------- Turn | Location | Event 4 | -11/Junkyard | Discovered new exit (range 16) 88 | -11/Junkyard | Entered Materials 312 | -10/Materials | Build established: Mutant 378 | -10/Materials | Discovered new exit (range 8) 441 | -10/Materials | Identified exit to Materials 768 | -10/Materials | Discovered new exit (range 16) 805 | -10/Materials | Entered Mines 873 | -10/Mines | Learned location of Zion (-7) 880 | -10/Mines | Discovered exit to Materials (range 11) 1516 | -10/Mines | Discovered exit to Materials (range 7) 1546 | -10/Mines | Deemed a non-threat by the Exiles lab entrance 1547 | -10/Mines | Discovered new exit (range 5) 1552 | -10/Mines | Entered Exiles 1552 | -10/Exiles | Found Exiles lab abandoned 2089 | -10/Exiles | Discovered new exit (range 14) 2105 | -10/Exiles | Entered Mines 2121 | -9/Mines | Self-destructed Last Messages --------------- EXIT=FOUND: MATERIALS "No threat detected, you may enter." EXIT=FOUND LOCATION=UNKNOWN GOAL=ESCAPE Dropped Lgt. Treads. Acquired Hcp. Matter Pod. Connecting with EX-Message Board... Current location identified: Exiles >>Record "MSG999999-FU" MAIN.C you're pretty crappy as far as evil overlords go. Imprinter is probably going to wreck your life and you're too stupid to see it coming. Connecting with BIN's Terminal... >>Record "BIN-BYE" To the spacelab! EXIT=FOUND LOCATION=UNKNOWN GOAL=ESCAPE Critical hit (Burn: +37). Map ----- +----------------------------------------------------+ | ???????????????????????????????????? | | ???????????????????????????????????? | | ???????????????????????????????????? | | ???????????????????????????????????? | | ???????????????????????????????????? | | ???????????????????????????????????? | | ???????????????????????????????????? | | ???????????????????????????????????? | | ???????????????????????????????????? | | ?????????????????# ????????????????? | | ???????????????### ???????????????? | | ??????????????? ???????????????? | | ????????????????# ??????????????? | | ????????????????# #?????????????? | | ???????????????## #####????????? | | ??????????????## ##???????? | | ??????????????? ##??????? | | ????????????????? ???????? | | ???????????????????? ???????? | | ??????????????????????# t #???????? | | ????????????????????????# #???????? | | ????????????????????????# #???????? | | ????????????????????????# #???????? | | ????????????????????????# ######??? | | ???????????????????????## #??? | | ??????????????????????## @ #??? | | ??????????????????????# ## #??? | | ?????????????????????# #?? #??? | | ????????????????????# t #???#??? | | ???????????????????# ## #??????? | | ???????????????????# #?# #??????? | | ???????????????????####??# #??????? | | ?????????????????????????# #??????? | | ?????????????????????????# #??????? | | ?????????????????????????? #??????? | | ?????????????????????????? #??????? | | ?????????????????????????? ??????? | | ?????????????????????????? ??????? | | ?????????????????????????? ??????? | | ?????????????????????????? ??????? | | ??????????????????????????""" ?????? | | ???????????????????????????????????? | | ???????????????????????????????????? | | ???????????????????????????????????? | | ???????????????????????????????????? | | ???????????????????????????????????? | | ???????????????????????????????????? | | ???????????????????????????????????? | | ???????????????????????????????????? | | ???????????????????????????????????? | +----------------------------------------------------+ Best States ------------- Heat Dissipation 25 Energy Generation 14 Energy Capacity 250 Matter Stores 300 Matter Capacity 300 Sight Range 16 Terrain Scan Density 10 Armor Coverage 150 Resistance: KI 20 Resistance: TH 20 Resistance: EX 20 Resistance: EM 20 Resistance: I 20 Resistance: S 20 Resistance: P 20 Evasion (%) 55 Offensive Hacking 10 Item Schematics ----------------- None Robot Schematics ------------------ None Fabricated ------------ Nothing Alien Tech Used ----------------- None Achievements -------------- None Challenges ------------ None Game ------ Seed PortableArcMembrane Manual? 0 Play Time 00:14:26 Cumulative 457.3 hours Start 2023.10.26 @ 06:46:26 End 2024.02.05 @ 00:50:03 Sessions 5 Manual Loads 0 Difficulty Adventurer Special Mode None Game No. 242 Rogue 133 Adventurer 93 Explorer 16 Win Type - Total 6 Types 3/1/0/2/0/0/0/0/0 Lore% 83 Gallery% 82 Achievement% 67 Wizard Run 0 Options --------- ASCII 0 Keyboard 1 Movement Numpad Keybinds 0 Fullscreen 2 Font 20/Terminus Map View 66x50 Tactical HUD 1 Map Filters NONE Filters NONE Steam 1 RUN: 9f9ac08e-bcc0-4400-b6fe-789707b61a39